fUST/lending_fUST_20250103
["ID","MTS","AMOUNT","RATE_DAILY","PERIOD"]
[347553009,1735914655504,-500.0,0.0002,3]
[347553010,1735914655514,-500.0,0.0002,3]
[347553011,1735914655524,-1813.86,0.0002,2]
[347553012,1735914655534,-500.0,0.0002,3]
[347553013,1735914655543,-1557.34,0.0002,3]
[347553014,1735914655635,-500.0,0.0002,3]
[347553015,1735914655646,-500.0,0.0002,3]
[347553016,1735914655655,-500.0,0.0002,3]
[347553017,1735914655665,-500.0,0.0002,3]
[347553018,1735914655674,-500.0,0.0002,3]
[347553019,1735914655684,-500.0,0.0002,3]
[347553020,1735914655694,-500.0,0.0002,3]
[347553021,1735914655703,-6784.37,0.0002,3]
[347553022,1735914655713,-500.0,0.0002,3]
[347553023,1735914655723,-662.11,0.0002,3]
[347553024,1735914655732,-500.0,0.0002,3]
[347553025,1735914655746,-500.0,0.0002,3]
[347553026,1735914655755,-3882.68,0.0002,3]
[347553027,1735914655765,-481.51270683,0.0002,3]
[347553028,1735914655774,-3387.34,0.0002,3]
[347553029,1735914655785,-500.0,0.0002,3]
[347553030,1735914655795,-12647.88,0.0002,3]
[347553031,1735914655804,-500.0,0.0002,3]
[347553032,1735914655813,-493.75884489,0.0002,3]
[347553033,1735914655823,-500.0,0.0002,3]
[347553034,1735914655833,-500.0,0.0002,3]
[347553035,1735914655842,-1058.5,0.0002,3]
[347553036,1735914655854,-550.16159,0.0002,3]
[347553037,1735914655863,-500.0,0.0002,3]
[347553038,1735914655872,-500.0,0.0002,3]
[347553039,1735914655881,-500.0,0.0002,3]
[347553040,1735914655891,-500.0,0.0002,3]
[347553041,1735914655903,-2068.3,0.0002,3]
[347553042,1735914655912,-1467.29,0.0002,3]
[347553043,1735914655922,-1762.8,0.0002,3]
[347553044,1735914655931,-1466.59,0.0002,3]
[347553045,1735914655940,-500.0,0.0002,3]
[347553046,1735914655949,-500.0,0.0002,3]
[347553047,1735914655958,-639.56,0.0002,3]
[347553048,1735914655968,-681.75,0.0002,3]
[347553049,1735914655977,-500.0,0.0002,3]
[347553050,1735914655987,-500.0,0.0002,3]
[347553051,1735914655996,-500.0,0.0002,3]
[347553052,1735914656006,-500.0,0.0002,3]
[347553053,1735914656015,-1555.58,0.0002,3]
[347553054,1735914656025,-10769.07419652,0.00020003,2]
[347553055,1735914656035,-816.242699,0.00020004,2]
[347553056,1735914656044,-816.242699,0.00020004,2]
[347553057,1735914656054,-332.622193,0.00020004,2]
[347553058,1735914656063,-332.622193,0.00020004,2]
[347553059,1735914656072,-1014.69800006,0.00020017,2]
[347553060,1735914656082,-1000.0,0.00020021,2]
[347553061,1735914656091,-1000.0,0.00020021,2]
[347553062,1735914656101,-1000.0,0.00020021,2]
[347553063,1735914656110,-177.58718499,0.00020021,2]
[347553064,1735914656120,-1000.0,0.00020021,2]
[347553065,1735914656129,-160.0,0.00020058,3]
[347553066,1735914656138,-1274.66726796,0.00020072,2]
[347553067,1735914656150,-10769.07419652,0.00020107,2]
[347553068,1735914656159,-241.067774,0.00020107,2]
[347553069,1735914656169,-241.067774,0.00020107,2]
[347553070,1735914656178,-270.12075086,0.00020148,2]
[347553071,1735914656188,-151.0,0.00020154,5]
[347553072,1735914656198,-3541.35808514,0.00020196,2]
[347553073,1735914656208,-40284.41331623,0.00020198,2]
[347553074,1735914656217,-151.0,0.00020198,2]
[347553075,1735914656227,-10769.07419652,0.0002021,2]
[347553076,1735914656236,-500.0,0.00020273,3]
[347553077,1735914656246,-500.0,0.00020273,3]
[347553078,1735914656255,-500.0,0.00020273,3]
[347553079,1735914656264,-508.34725536,0.00020273,3]
[347553080,1735914656274,-566.65,0.00020273,3]
[347553081,1735914656283,-500.0,0.00020273,3]
[347553082,1735914656293,-500.0,0.00020273,3]
[347553083,1735914656302,-500.0,0.00020273,3]
[347553084,1735914656312,-509.82,0.00020273,3]
[347553085,1735914656321,-500.0,0.00020273,3]
[347553086,1735914656330,-500.0,0.00020273,3]
[347553087,1735914656339,-500.0,0.00020273,3]
[347553088,1735914656349,-500.0,0.00020273,3]
[347553089,1735914656358,-500.0,0.00020273,3]
[347553090,1735914656367,-500.0,0.00020273,3]
[347553091,1735914656376,-500.0,0.00020273,3]
[347553092,1735914656386,-500.0,0.00020273,3]
[347553093,1735914656398,-500.0,0.00020273,3]
[347553094,1735914656408,-500.0,0.00020273,3]
[347553095,1735914656417,-500.0,0.00020273,3]
[347553096,1735914656426,-500.0,0.00020273,3]
[347553097,1735914656437,-500.0,0.00020273,3]
[347553098,1735914656446,-645.25951569,0.00020273,3]
[347553099,1735914656455,-500.0,0.00020273,3]
[347553100,1735914656465,-500.0,0.00020273,3]
[347553101,1735914656475,-500.0,0.00020273,3]
[347553102,1735914656485,-502.63721505,0.00020273,3]
[347553103,1735914656494,-500.0,0.00020273,3]
[347553104,1735914656504,-500.0,0.00020273,3]
[347553105,1735914656512,-500.0,0.00020273,3]
[347553106,1735914656522,-500.0,0.00020273,3]
[347553107,1735914656531,-500.0,0.00020273,3]
[347553108,1735914656541,-500.0,0.00020273,3]
[347553109,1735914656550,-500.0,0.00020273,3]
[347553110,1735914656560,-531.95155675,0.00020273,3]
[347553111,1735914656569,-500.0,0.00020273,3]
[347553112,1735914656579,-500.0,0.00020273,3]
[347553113,1735914656588,-500.0,0.00020273,3]
[347553114,1735914656597,-505.52,0.00020273,3]
[347553115,1735914656606,-500.0,0.00020273,3]
[347553116,1735914656616,-500.0,0.00020273,3]
[347553117,1735914656625,-507.98885058,0.00020273,3]
[347553118,1735914656634,-1576.01,0.00020273,3]
[347553119,1735914656644,-541.65490448,0.00020273,3]
[347553120,1735914656654,-500.0,0.00020273,3]
[347553121,1735914656663,-816.242699,0.00020273,2]
[347553122,1735914656672,-816.242699,0.00020273,2]
[347553123,1735914656682,-586.43386275,0.00020273,3]
[347553124,1735914656691,-500.0,0.00020273,3]
[347553125,1735914656701,-500.0,0.00020273,3]
[347553126,1735914656710,-816.242699,0.00020273,2]
[347553127,1735914656720,-816.242699,0.00020273,2]
[347553128,1735914656729,-500.0,0.00020273,3]
[347553129,1735914656738,-500.0,0.00020273,3]
[347553130,1735914656751,-432.69769587,0.00020273,3]
[347553131,1735914656759,-500.0,0.00020273,3]
[347553132,1735914656768,-500.0,0.00020273,3]
[347553133,1735914656778,-500.0,0.00020273,3]
[347553134,1735914656787,-500.0,0.00020273,3]
[347553135,1735914656797,-813.02,0.00020273,3]
[347553136,1735914656807,-500.0,0.00020273,3]
[347553137,1735914656816,-236.31605315,0.00020273,3]
[347553138,1735914656830,-500.0,0.00020273,3]
[347553139,1735914656840,-500.0,0.00020273,3]
[347553140,1735914656849,-500.0,0.00020273,3]
[347553141,1735914656859,-500.0,0.00020273,3]
[347553142,1735914656869,-500.0,0.00020273,3]
[347553143,1735914656879,-500.0,0.00020273,3]
[347553144,1735914656888,-500.0,0.00020273,3]
[347553145,1735914656900,-151.91983262,0.00020273,3]
[347553146,1735914656910,-500.0,0.00020273,3]
[347553147,1735914656919,-697.98,0.00020273,3]
[347553148,1735914656929,-500.0,0.00020273,3]
[347553149,1735914656938,-500.0,0.00020273,3]
[347553150,1735914656948,-500.0,0.00020273,3]
[347553151,1735914657037,-500.0,0.00020273,3]
[347553152,1735914657046,-500.0,0.00020273,3]
[347553153,1735914657056,-500.0,0.00020273,3]
[347553154,1735914657066,-500.0,0.00020273,3]
[347553155,1735914657075,-500.0,0.00020273,3]
[347553156,1735914657084,-1566.41,0.00020273,3]
[347553157,1735914657094,-998.31,0.00020273,3]
[347553158,1735914657103,-500.0,0.00020273,3]
[347553159,1735914657113,-500.0,0.00020273,3]
[347553160,1735914657122,-500.0,0.00020273,3]
[347553161,1735914657131,-500.0,0.00020273,3]
[347553162,1735914657141,-500.0,0.00020273,3]
[347553163,1735914657151,-500.0,0.00020273,3]
[347553164,1735914657160,-523.99385536,0.00020273,3]
[347553165,1735914657169,-500.0,0.00020273,3]
[347553166,1735914657179,-500.0,0.00020273,3]
[347553167,1735914657188,-500.0,0.00020273,3]
[347553168,1735914657198,-500.0,0.00020273,3]
[347553169,1735914657207,-788.94,0.00020273,3]
[347553170,1735914657217,-1579.93,0.00020273,3]
[347553171,1735914657226,-578.92457159,0.00020273,3]
[347553172,1735914657235,-500.0,0.00020273,3]
[347553173,1735914657245,-500.0,0.00020273,3]
[347553174,1735914657255,-500.0,0.00020273,3]
[347553175,1735914657265,-500.0,0.00020273,3]
[347553176,1735914657276,-519.13,0.00020273,3]
[347553177,1735914657286,-914.33,0.00020273,3]
[347553178,1735914657295,-500.0,0.00020273,3]
[347553179,1735914657305,-1344.35,0.00020273,3]
[347553180,1735914657315,-820.13,0.00020273,3]
[347553181,1735914657325,-500.0,0.00020273,3]
[347553182,1735914657335,-542.63,0.00020273,3]
[347553183,1735914657344,-500.0,0.00020273,3]
[347553184,1735914657353,-500.0,0.00020273,3]
[347553185,1735914657362,-500.0,0.00020273,3]
[347553186,1735914657371,-500.0,0.00020273,3]
[347553187,1735914657381,-500.0,0.00020273,3]
[347553188,1735914657390,-612.9,0.00020273,3]
[347553189,1735914657401,-500.0,0.00020273,3]
[347553190,1735914657410,-500.0,0.00020273,3]
[347553191,1735914657419,-500.0,0.00020273,3]
[347553192,1735914657429,-500.0,0.00020273,3]
[347553193,1735914657439,-3796.94,0.00020273,3]
[347553194,1735914657448,-349.22896635,0.00020273,3]
[347553195,1735914657458,-500.0,0.00020273,3]
[347553196,1735914657468,-504.8744336,0.00020273,3]
[347553197,1735914657478,-500.0,0.00020273,3]
[347553198,1735914657488,-500.0,0.00020273,3]
[347553199,1735914657497,-500.0,0.00020273,3]
[347553200,1735914657507,-500.0,0.00020273,3]
[347553201,1735914657517,-1816.62,0.00020273,3]
[347553202,1735914657527,-505.41283512,0.00020273,3]
[347553203,1735914657536,-500.0,0.00020273,3]
[347553204,1735914657546,-923.79,0.00020273,3]
[347553205,1735914657555,-500.0,0.00020273,3]
[347553206,1735914657565,-500.0,0.00020273,3]
[347553207,1735914657575,-500.0,0.00020273,3]
[347553208,1735914657584,-572.64,0.00020273,3]
[347553209,1735914657593,-500.0,0.00020273,3]
[347553210,1735914657603,-500.0,0.00020273,3]
[347553211,1735914657612,-500.0,0.00020273,3]
[347553212,1735914657622,-761.07,0.00020273,3]
[347553213,1735914657632,-500.0,0.00020273,3]
[347553214,1735914657641,-500.0,0.00020273,3]
[347553215,1735914657652,-862.17,0.00020273,3]
[347553216,1735914657662,-500.0,0.00020273,3]
[347553217,1735914657671,-500.0,0.00020273,3]
[347553218,1735914657681,-627.15,0.00020273,3]
[347553219,1735914657690,-500.0,0.00020273,3]
[347553220,1735914657700,-500.0,0.00020273,3]
[347553221,1735914657710,-500.0,0.00020273,3]
[347553222,1735914657720,-500.0,0.00020273,3]
[347553223,1735914657730,-500.0,0.00020273,3]
[347553224,1735914657745,-767.72,0.00020273,3]
[347553225,1735914657755,-500.0,0.00020273,3]
[347553226,1735914657764,-500.0,0.00020273,3]
[347553227,1735914657774,-500.0,0.00020273,3]
[347553228,1735914657785,-585.7,0.00020273,2]
[347553229,1735914657794,-500.0,0.00020273,3]
[347553230,1735914657804,-500.0,0.00020273,3]
[347553231,1735914657814,-332.622193,0.00020273,2]
[347553232,1735914657823,-500.0,0.00020273,3]
[347553233,1735914657834,-332.62219561,0.00020273,2]
[347553234,1735914657844,-500.0,0.00020273,3]
[347553235,1735914657854,-911.92,0.00020273,3]
[347553236,1735914657864,-952.49,0.00020273,3]
[347553237,1735914657873,-500.0,0.00020273,3]
[347553238,1735914657883,-500.0,0.00020273,3]
[347553239,1735914657892,-500.0,0.00020273,3]
[347553240,1735914657903,-1788.82,0.00020273,3]
[347553241,1735914657913,-828.83,0.00020273,3]
[347553242,1735914657923,-500.0,0.00020273,3]
[347553243,1735914657933,-500.0,0.00020273,3]
[347553244,1735914657944,-500.0,0.00020273,3]
[347553245,1735914657953,-500.0,0.00020273,3]
[347553246,1735914657963,-601.73012708,0.00020273,3]
[347553247,1735914657972,-873.33,0.00020273,3]
[347553248,1735914657982,-500.0,0.00020273,3]
[347553249,1735914657992,-500.0,0.00020273,3]
[347553250,1735914658002,-275.66278501,0.00020273,3]
[347553251,1735914658011,-1369.16,0.00020273,3]
[347553252,1735914658021,-500.0,0.00020273,3]
[347553253,1735914658031,-646.62,0.00020273,3]
[347553254,1735914658040,-500.0,0.00020273,3]
[347553255,1735914658050,-500.0,0.00020273,3]
[347553256,1735914658060,-1367.42,0.00020273,3]
[347553257,1735914658069,-500.0,0.00020273,3]
[347553258,1735914658079,-500.0,0.00020273,3]
[347553259,1735914658089,-538.67916958,0.00020273,3]
[347553260,1735914658098,-10541.02,0.00020273,3]
[347553261,1735914658109,-500.0,0.00020273,3]
[347553262,1735914658118,-500.0,0.00020273,3]
[347553263,1735914658128,-819.78,0.00020273,3]
[347553264,1735914658137,-500.0,0.00020273,3]
[347553265,1735914658149,-500.0,0.00020273,3]
[347553266,1735914658158,-500.0,0.00020273,3]
[347553267,1735914658167,-500.0,0.00020273,3]
[347553268,1735914658177,-500.0,0.00020273,3]
[347553269,1735914658186,-500.0,0.00020273,3]
[347553270,1735914658195,-500.0,0.00020273,3]
[347553271,1735914658205,-500.0,0.00020273,3]
[347553272,1735914658215,-3612.65,0.00020273,3]
[347553273,1735914658225,-1055.64,0.00020273,3]
[347553274,1735914658235,-500.0,0.00020273,3]
[347553275,1735914658244,-1039.19,0.00020273,3]
[347553276,1735914658254,-500.0,0.00020273,3]
[347553277,1735914658339,-280.283849,0.00020273,3]
[347553278,1735914658349,-573.52,0.00020273,3]
[347553279,1735914658359,-500.0,0.00020273,3]
[347553280,1735914658369,-625.19,0.00020273,3]
[347553281,1735914658379,-500.0,0.00020273,3]
[347553282,1735914658389,-500.0,0.00020273,3]
[347553283,1735914658400,-1717.54,0.00020273,3]
[347553284,1735914658409,-504.05782668,0.00020273,3]
[347553285,1735914658418,-507.44777956,0.00020273,3]
[347553286,1735914658427,-3527.55,0.00020273,3]
[347553287,1735914658438,-500.0,0.00020273,3]
[347553288,1735914658447,-500.0,0.00020273,3]
[347553289,1735914658456,-51133.51,0.00020273,3]
[347553290,1735914658466,-500.0,0.00020273,3]
[347553291,1735914658475,-500.0,0.00020273,3]
[347553292,1735914658485,-500.0,0.00020273,3]
[347553293,1735914658494,-500.0,0.00020273,3]
[347553294,1735914658504,-500.0,0.00020273,3]
[347553295,1735914658514,-1711.85,0.00020273,3]
[347553296,1735914658525,-500.0,0.00020273,3]
[347553297,1735914658534,-6221.44,0.00020273,3]
[347553298,1735914658544,-751.46,0.00020273,3]
[347553299,1735914658554,-2077.92,0.00020273,3]
[347553300,1735914658564,-1306.57,0.00020273,3]
[347553301,1735914658574,-537.82,0.00020273,3]
[347553302,1735914658584,-241.067774,0.00020273,2]
[347553303,1735914658594,-241.067774,0.00020273,2]
[347553304,1735914658603,-500.0,0.00020273,3]
[347553305,1735914658613,-151.0,0.00020273,2]
[347553306,1735914658624,-500.0,0.00020273,3]
[347553307,1735914658634,-500.0,0.00020273,3]
[347553308,1735914658644,-241.067774,0.00020273,2]
[347553309,1735914658659,-241.067782,0.00020273,2]
[347553310,1735914658668,-500.0,0.00020273,3]
[347553311,1735914658678,-2177.57,0.00020273,3]
[347553312,1735914658689,-500.0,0.00020273,3]
[347553313,1735914658699,-500.0,0.00020273,3]
[347553314,1735914658708,-1531.36,0.00020273,3]
[347553315,1735914658718,-500.0,0.00020273,3]
[347553316,1735914658728,-500.0,0.00020273,3]
[347553317,1735914658737,-1014.31,0.00020273,3]
[347553318,1735914658748,-500.0,0.00020273,3]
[347553319,1735914658760,-500.0,0.00020273,3]
[347553320,1735914658771,-500.0,0.00020273,3]
[347553321,1735914658780,-500.0,0.00020273,3]
[347553322,1735914658789,-500.0,0.00020273,3]
[347553323,1735914658801,-500.0,0.00020273,3]
[347553324,1735914658811,-500.0,0.00020273,3]
[347553325,1735914658821,-500.0,0.00020273,3]
[347553326,1735914658831,-500.0,0.00020273,3]
[347553327,1735914658841,-726.88,0.00020273,3]
[347553328,1735914658850,-756.46,0.00020273,3]
[347553329,1735914658860,-500.0,0.00020273,3]
[347553330,1735914658869,-500.0,0.00020273,3]
[347553331,1735914658880,-1813.86,0.00020273,2]
[347553332,1735914658889,-1557.34,0.00020273,3]
[347553333,1735914658901,-500.0,0.00020273,3]
[347553334,1735914658910,-500.0,0.00020273,3]
[347553335,1735914658929,-500.0,0.00020273,3]
[347553336,1735914658948,-500.0,0.00020273,3]
[347553337,1735914658967,-500.0,0.00020273,3]
[347553338,1735914658987,-500.0,0.00020273,3]
[347553339,1735914659008,-500.0,0.00020273,3]
[347553340,1735914659026,-500.0,0.00020273,3]
[347553341,1735914659045,-6784.37,0.00020273,3]
[347553342,1735914659061,-500.0,0.00020273,3]
[347553343,1735914659075,-662.11,0.00020273,3]
[347553344,1735914659094,-500.0,0.00020273,3]
[347553345,1735914659114,-3882.68,0.00020273,3]
[347553346,1735914659132,-3387.34,0.00020273,3]
[347553347,1735914659144,-500.0,0.00020273,3]
[347553348,1735914659166,-12647.88,0.00020273,3]
[347553349,1735914659180,-500.0,0.00020273,3]
[347553350,1735914659196,-500.0,0.00020273,3]
[347553351,1735914659209,-500.0,0.00020273,3]
[347553352,1735914659225,-1058.5,0.00020273,3]
[347553353,1735914659240,-500.0,0.00020273,3]
[347553354,1735914659255,-500.0,0.00020273,3]
[347553355,1735914659270,-500.0,0.00020273,3]
[347553356,1735914659284,-500.0,0.00020273,3]
[347553357,1735914659299,-2068.3,0.00020273,3]
[347553358,1735914659313,-1467.29,0.00020273,3]
[347553359,1735914659328,-1762.8,0.00020273,3]
[347553360,1735914659341,-1466.59,0.00020273,3]
[347553361,1735914659356,-164.3369884,0.00020273,3]
[347553362,1735914659370,-500.0,0.00020273,3]
[347553363,1735914659384,-639.56,0.00020273,3]
[347553364,1735914659401,-500.0,0.00020273,3]
[347553365,1735914659415,-681.75,0.00020273,3]
[347553366,1735914659430,-500.0,0.00020273,3]
[347553367,1735914659445,-500.0,0.00020273,3]
[347553368,1735914659460,-500.0,0.00020273,3]
[347553369,1735914659475,-1555.58,0.00020273,3]
[347553370,1735914659490,-150.12,0.00020274,2]
[347553371,1735914659504,-150.12,0.00020274,2]
[347553372,1735914659518,-10769.07419652,0.00020314,2]
[347553373,1735914659533,-151.0,0.00020367,6]
[347553374,1735914659547,-10769.07419652,0.00020417,2]
[347553375,1735914659562,-253.689235,0.00020447,2]
[347553376,1735914659577,-3541.35808514,0.00020492,2]
[347553377,1735914659591,-187493.77681001,0.000205,2]
[347553378,1735914659605,-816.242699,0.000205,2]
[347553379,1735914659621,-816.242699,0.000205,2]
[347553380,1735914659636,-192.562544,0.00020521,2]
[347553381,1735914659646,-10769.07419652,0.00020521,2]
[347553382,1735914659659,-500.0,0.00020547,3]
[347553383,1735914659668,-500.0,0.00020547,3]
[347553384,1735914659678,-500.0,0.00020547,3]
[347553385,1735914659687,-566.65,0.00020547,3]
[347553386,1735914659696,-500.0,0.00020547,3]
[347553387,1735914659706,-500.0,0.00020547,3]
[347553388,1735914659715,-509.30789237,0.00020547,3]
[347553389,1735914659725,-509.82,0.00020547,3]
[347553390,1735914659734,-500.0,0.00020547,3]
[347553391,1735914659748,-500.0,0.00020547,3]
[347553392,1735914659757,-500.0,0.00020547,3]
[347553393,1735914659944,-500.0,0.00020547,3]
[347553394,1735914659967,-500.0,0.00020547,3]
[347553395,1735914659977,-490.0,0.00020547,3]
[347553396,1735914659987,-500.0,0.00020547,3]
[347553397,1735914659997,-500.0,0.00020547,3]
[347553398,1735914660006,-500.0,0.00020547,3]
[347553399,1735914660017,-500.0,0.00020547,3]
[347553400,1735914660027,-500.0,0.00020547,3]
[347553401,1735914660037,-500.0,0.00020547,3]
[347553402,1735914660047,-500.0,0.00020547,3]
[347553403,1735914660057,-500.0,0.00020547,3]
[347553404,1735914660067,-500.0,0.00020547,3]
[347553405,1735914660077,-500.0,0.00020547,3]
[347553406,1735914660086,-500.0,0.00020547,3]
[347553407,1735914660096,-326.76624969,0.00020547,3]
[347553408,1735914660105,-506.45471269,0.00020547,3]
[347553409,1735914660115,-500.0,0.00020547,3]
[347553410,1735914660124,-500.0,0.00020547,3]
[347553411,1735914660134,-500.0,0.00020547,3]
[347553412,1735914660144,-267.5554097,0.00020547,3]
[347553413,1735914660158,-500.0,0.00020547,3]
[347553414,1735914660167,-500.0,0.00020547,3]
[347553415,1735914660177,-505.52,0.00020547,3]
[347553416,1735914660187,-500.0,0.00020547,3]
[347553417,1735914660196,-500.0,0.00020547,3]
[347553418,1735914660205,-1576.01,0.00020547,3]
[347553419,1735914660215,-500.0,0.00020547,3]
[347553420,1735914660225,-816.242699,0.00020547,2]
[347553421,1735914660234,-500.0,0.00020547,3]
[347553422,1735914660243,-500.0,0.00020547,3]
[347553423,1735914660253,-816.242699,0.00020547,2]
[347553424,1735914660263,-500.0,0.00020547,3]
[347553425,1735914660272,-500.0,0.00020547,3]
[347553426,1735914660282,-500.0,0.00020547,3]
[347553427,1735914660291,-500.0,0.00020547,3]
[347553428,1735914660301,-500.0,0.00020547,3]
[347553429,1735914660310,-813.02,0.00020547,3]
[347553430,1735914660319,-500.0,0.00020547,3]
[347553431,1735914660328,-500.0,0.00020547,3]
[347553432,1735914660337,-500.0,0.00020547,3]
[347553433,1735914660347,-500.0,0.00020547,3]
[347553434,1735914660357,-500.0,0.00020547,3]
[347553435,1735914660366,-500.0,0.00020547,3]
[347553436,1735914660375,-500.0,0.00020547,3]
[347553437,1735914660385,-500.0,0.00020547,3]
[347553438,1735914660394,-500.0,0.00020547,3]
[347553439,1735914660406,-697.98,0.00020547,3]
[347553440,1735914660416,-500.0,0.00020547,3]
[347553441,1735914660426,-500.0,0.00020547,3]
[347553442,1735914660435,-500.0,0.00020547,3]
[347553443,1735914660445,-427.42506097,0.00020547,3]
[347553444,1735914660455,-358.67686299,0.00020547,3]
[347553445,1735914660464,-500.0,0.00020547,3]
[347553446,1735914660474,-500.0,0.00020547,3]
[347553447,1735914660483,-500.0,0.00020547,3]
[347553448,1735914660493,-1566.41,0.00020547,3]
[347553449,1735914660502,-998.31,0.00020547,3]
[347553450,1735914660512,-500.0,0.00020547,3]
[347553451,1735914660522,-506.29421908,0.00020547,3]
[347553452,1735914660532,-516.73469625,0.00020547,3]
[347553453,1735914660542,-500.0,0.00020547,3]
[347553454,1735914660551,-500.0,0.00020547,3]
[347553455,1735914660561,-500.0,0.00020547,3]
[347553456,1735914660570,-500.0,0.00020547,3]
[347553457,1735914660580,-500.0,0.00020547,3]
[347553458,1735914660590,-583.89830634,0.00020547,3]
[347553459,1735914660600,-500.0,0.00020547,3]
[347553460,1735914660609,-788.94,0.00020547,3]
[347553461,1735914660619,-1579.93,0.00020547,3]
[347553462,1735914660629,-500.0,0.00020547,3]
[347553463,1735914660639,-268.3393543,0.00020547,3]
[347553464,1735914660649,-500.0,0.00020547,3]
[347553465,1735914660660,-500.0,0.00020547,3]
[347553466,1735914660669,-519.13,0.00020547,3]
[347553467,1735914660678,-914.33,0.00020547,3]
[347553468,1735914660688,-243.46826239,0.00020547,3]
[347553469,1735914660697,-1006.61687134,0.00020547,2]
[347553470,1735914660706,-1344.35,0.00020547,3]
[347553471,1735914660716,-820.13,0.00020547,3]
[347553472,1735914660726,-500.0,0.00020547,3]
[347553473,1735914660736,-542.63,0.00020547,3]
[347553474,1735914660745,-500.0,0.00020547,3]
[347553475,1735914660758,-500.0,0.00020547,3]
[347553476,1735914660767,-500.0,0.00020547,3]
[347553477,1735914660777,-500.0,0.00020547,3]
[347553478,1735914660786,-500.0,0.00020547,3]
[347553479,1735914660798,-612.9,0.00020547,3]
[347553480,1735914660807,-500.0,0.00020547,3]
[347553481,1735914660816,-500.0,0.00020547,3]
[347553482,1735914660826,-500.0,0.00020547,3]
[347553483,1735914660835,-500.0,0.00020547,3]
[347553484,1735914660846,-3796.94,0.00020547,3]
[347553485,1735914660855,-500.0,0.00020547,3]
[347553486,1735914660864,-500.0,0.00020547,3]
[347553487,1735914660876,-500.0,0.00020547,3]
[347553488,1735914660886,-500.0,0.00020547,3]
[347553489,1735914660895,-500.0,0.00020547,3]
[347553490,1735914660908,-1816.62,0.00020547,3]
[347553491,1735914660919,-500.0,0.00020547,3]
[347553492,1735914660928,-923.79,0.00020547,3]
[347553493,1735914660937,-500.0,0.00020547,3]
[347553494,1735914660947,-500.0,0.00020547,3]
[347553495,1735914660956,-500.0,0.00020547,3]
[347553496,1735914660966,-572.64,0.00020547,3]
[347553497,1735914660976,-500.0,0.00020547,3]
[347553498,1735914660986,-500.0,0.00020547,3]
[347553499,1735914660996,-500.0,0.00020547,3]
[347553500,1735914661006,-761.07,0.00020547,3]
[347553501,1735914661016,-500.0,0.00020547,3]
[347553502,1735914661027,-500.0,0.00020547,3]
[347553503,1735914661036,-862.17,0.00020547,3]
[347553504,1735914661046,-543.34595387,0.00020547,3]
[347553505,1735914661056,-500.0,0.00020547,3]
[347553506,1735914661065,-627.15,0.00020547,3]
[347553507,1735914661075,-500.0,0.00020547,3]
[347553508,1735914661085,-500.0,0.00020547,3]